[Event "XII Cracow ICC-A 2024"]
[Site "Krakow"]
[Date "2024.06.23"]
[Round "3.19"]
[White "Turski, Bartlomiej"]
[Black "Kracht, Raphael"]
[Result "1/2-1/2"]
[ECO "E23"]
[WhiteElo "2334"]
[BlackElo "2199"]
[Annotator "RC"]
[PlyCount "77"]
[EventDate "2024.06.20"]
[EventType "swiss"]
[EventCountry "POL"]
[SourceTitle "playchess.com"]
[Source "ChessBase"]
[SourceQuality "1"]
[TimeControl "40/5400+30:1800+30"]

1. d4 {[%emt 0:00:06]} Nf6 {[%emt 0:14:49]} 2. c4 {[%emt 0:00:06]} e6 {[%emt 0:00:05]} 3. Nc3 {[%emt 0:00:03]} Bb4 {[%emt 0:00:06]} 4. Qb3 c5 {[%emt 0:00:05]} 5. Nf3 {[%emt 0:00:07]} Nc6 {[%emt 0:09:35]} 6. dxc5 {[%emt 0:00:37]} Ne4 {[%emt 0:02:22]} 7. Bd2 {[%emt 0:01:11]} Nxd2 {[%emt 0:03:56]} 8. Nxd2 {[%emt 0:00:15]} Bxc5 {[%emt 0:04:47]} 9. g3 {[%emt 0:08:04]} b6 {[%emt 0:13:29]} 10. Bg2 {[%emt 0:01:19]} Bb7 {[%emt 0:00:06]} 11. O-O {[%emt 0:01:16]} f5 {[%emt 0:06:43]} 12. a3 {[%emt 0:10:14]} O-O {[%emt 0:11:07]} 13. Qd1 {[%emt 0:01:48]} Be7 {[%emt 0:17:40]} 14. Rc1 {[%emt 0:02:07]} Rc8 {[%emt 0:03:40]} 15. Nb3 {[%emt 0:05:07]} Ba8 {[%emt 0:04:40]} 16. Nb5 {[%emt 0:05:59]} a6 {[%emt 0:00:40]} 17. Nd6 {[%emt 0:02:41]} Rc7 {[%emt 0:00:06]} 18. f4 {[%emt 0:15:24]} Na5 {[%emt 0:02:43]} 19. Nxa5 {[%emt 0:05:28]} Bxg2 {[%emt 0:00:32]} 20. Kxg2 {[%emt 0:02:31]} bxa5 {[%emt 0:00:04]} 21. c5 {[%emt 0:04:40]} Qa8+ {[%emt 0:00:03]} 22. Rf3 {[%emt 0:01:26]} Qc6 {[%emt 0:00:29]} 23. Rcc3 {[%emt 0:04:21]} Bf6 {[%emt 0:02:19]} 24. Rc2 {[%emt 0:00:44]} Rb8 {[%emt 0:00:19]} 25. Qc1 {[%emt 0:02:33]} Qd5 {[%emt 0:01:18]} 26. b4 {[%emt 0:05:40]} axb4 {[%emt 0:00:12]} 27. axb4 {[%emt 0:00:01]} Rxb4 {[%emt 0:01:08]} 28. Ne8 {[%emt 0:00:09]} Rc6 {[%emt 0:00:37]} 29. Nxf6+ {[%emt 0:02:17]} gxf6 {[%emt 0:00:04]} 30. Rd2 {[%emt 0:00:36]} Rd4 {[%emt 0:00:08]} 31. Rxd4 {[%emt 0:00:25]} Qxd4 {[%emt 0:00:05]} 32. Rd3 {[%emt 0:00:32]} Qe4+ {[%emt 0:01:02]} 33. Kf2 {[%emt 0:01:12]} Rc7 {[%emt 0:01:11]} 34. Qa1 {[%emt 0:02:11]} Qc6 {[%emt 0:00:43]} 35. Qxf6 {[%emt 0:01:48]} Qxc5+ {[%emt 0:00:04]} 36. Kg2 {[%emt 0:00:21]} Qc6+ {[%emt 0:00:32]} 37. Kh3 {[%emt 0:01:08]} Rc8 {[%emt 0:00:43]} 38. Qe7 {[%emt 0:04:26]} d5 {[%emt 0:00:36]} 39. Qg5+ {[%emt 0:05:44]} 1/2-1/2

[Event "XII Cracow ICC-A 2024"]
[Site "Krakow"]
[Date "2024.06.23"]
[Round "3.20"]
[White "Gullaksen, Eirik"]
[Black "Vasynda, Oleksandr"]
[Result "0-1"]
[ECO "B31"]
[WhiteElo "2307"]
[BlackElo "2219"]
[Annotator "RC"]
[PlyCount "50"]
[EventDate "2024.06.20"]
[EventType "swiss"]
[EventCountry "POL"]
[SourceTitle "playchess.com"]
[Source "ChessBase"]
[SourceQuality "1"]
[TimeControl "40/5400+30:1800+30"]

1. e4 {[%emt 0:00:03]} c5 {[%emt 0:00:41]} 2. Nf3 {[%emt 0:00:09]} Nc6 {[%emt 0:00:09]} 3. Bb5 {[%emt 0:00:09]} g6 {[%emt 0:00:06]} 4. Bxc6 {[%emt 0:00:15]} dxc6 {[%emt 0:00:02]} 5. d3 {[%emt 0:00:13]} Bg7 {[%emt 0:00:20]} 6. h3 {[%emt 0:00:25]} e5 {[%emt 0:01:07]} 7. Be3 {[%emt 0:00:22]} Qe7 {[%emt 0:00:08]} 8. Nc3 {[%emt 0:00:30]} Nf6 {[%emt 0:00:31]} 9. Qd2 {[%emt 0:00:21]} h6 {[%emt 0:00:06]} 10. O-O {[%emt 0:00:37]} Nd7 {[%emt 0:00:07]} 11. a3 {[%emt 0:00:40]} Nf8 {[%emt 0:00:21]} 12. b4 {[%emt 0:00:38]} Ne6 {[%emt 0:02:46]} 13. Ne2 {[%emt 0:00:29]} f5 {[%emt 0:03:19]} 14. exf5 {[%emt 0:00:17]} gxf5 {[%emt 0:00:04]} 15. Rae1 {[%emt 0:00:24]} cxb4 {[%emt 0:04:17]} 16. axb4 {[%emt 0:03:53]} f4 {[%emt 0:02:13]} 17. Bxf4 {[%emt 0:11:44]} exf4 {[%emt 0:01:29]} 18. Nxf4 {[%emt 0:00:14]} O-O {[%emt 0:05:25]} 19. Ng6 {[%emt 0:01:57]} Qf6 {[%emt 0:01:33]} 20. Nxf8 {[%emt 0:00:35]} Qxf8 {[%emt 0:03:59]} 21. Ne5 {[%emt 0:09:25]} Nf4 {[%emt 0:03:03]} 22. Re4 {[%emt 0:11:46]} Nxh3+ {[%emt 0:11:16]} 23. gxh3 {[%emt 0:04:46]} Bxh3 {[%emt 0:01:37]} 24. Rfe1 {[%emt 0:09:47]} Bxe5 {[%emt 0:01:47]} 25. Rxe5 {[%emt 0:00:34]} Qg7+ {[%emt 0:00:17]} 0-1

[Event "XII Cracow ICC-A 2024"]
[Site "Krakow"]
[Date "2024.06.23"]
[Round "3.21"]
[White "Petrovic, Aleksa"]
[Black "Adithya A Chullikkad"]
[Result "1-0"]
[ECO "D02"]
[WhiteElo "2303"]
[BlackElo "2216"]
[Annotator "RC"]
[PlyCount "73"]
[EventDate "2024.06.20"]
[EventType "swiss"]
[EventCountry "POL"]
[SourceTitle "playchess.com"]
[Source "ChessBase"]
[SourceQuality "1"]
[TimeControl "40/5400+30:1800+30"]

1. d4 {[%emt 0:00:06]} Nf6 {[%emt 0:01:17]} 2. Nf3 {[%emt 0:00:00]} d5 {[%emt 0:00:22]} 3. c4 {[%emt 0:01:46]} e6 {[%emt 0:00:27]} 4. e3 {[%emt 0:01:18]} Be7 {[%emt 0:00:54]} 5. b3 {[%emt 0:01:07]} O-O {[%emt 0:02:02]} 6. Bd3 {[%emt 0:00:49]} c5 {[%emt 0:03:56]} 7. O-O {[%emt 0:02:18]} b6 {[%emt 0:01:33]} 8. Bb2 {[%emt 0:01:07]} Bb7 {[%emt 0:00:51]} 9. Nbd2 {[%emt 0:07:32]} Nbd7 {[%emt 0:02:15]} 10. Qe2 {[%emt 0:01:25]} Rc8 {[%emt 0:07:34]} 11. Rad1 {[%emt 0:01:49]} Qc7 {[%emt 0:01:58]} 12. Ne5 {[%emt 0:06:15]} Rfd8 {[%emt 0:14:54]} 13. f4 {[%emt 0:03:11]} Ne4 {[%emt 0:04:44]} 14. cxd5 {[%emt 0:05:10]} exd5 {[%emt 0:05:43]} 15. Nxe4 {[%emt 0:04:42]} dxe4 {[%emt 0:01:23]} 16. Bc4 {[%emt 0:00:26]} Nxe5 {[%emt 0:00:52]} 17. fxe5 {[%emt 0:02:16]} Bd5 {[%emt 0:01:33]} 18. Bxd5 {[%emt 0:14:07]} Rxd5 {[%emt 0:00:11]} 19. Qg4 {[%emt 0:01:47]} Qd7 {[%emt 0:09:07]} 20. Qxe4 {[%emt 0:00:35]} Bf8 {[%emt 0:01:12]} 21. Rc1 {[%emt 0:07:53]} Rd8 {[%emt 0:02:20]} 22. Rc2 {[%emt 0:01:30]} Qe6 {[%emt 0:02:21]} 23. Qf3 {[%emt 0:01:04]} R5d7 {[%emt 0:00:52]} 24. Rd2 {[%emt 0:04:53]} cxd4 {[%emt 0:05:00]} 25. exd4 {[%emt 0:00:28]} Bc5 {[%emt 0:01:27]} 26. Rdd1 {[%emt 0:02:04]} Bf8 {[%emt 0:01:27]} 27. Rc1 {[%emt 0:00:37]} Qe8 {[%emt 0:07:53]} 28. Rc6 {[%emt 0:02:10]} Rd5 {[%emt 0:02:24]} 29. Rc7 {[%emt 0:00:30]} R8d7 {[%emt 0:00:20]} 30. Rfc1 {[%emt 0:00:50]} h6 {[%emt 0:05:20]} 31. g3 {[%emt 0:06:52]} b5 {[%emt 0:02:13]} 32. Qg4 {[%emt 0:05:03]} Bb4 {[%emt 0:02:00]} 33. Rc8 {[%emt 0:00:47]} Rd8 {[%emt 0:00:05]} 34. Rxd8 {[%emt 0:00:21]} Rxd8 {[%emt 0:00:04]} 35. d5 {[%emt 0:00:39]} Ba5 {[%emt 0:03:04]} 36. e6 {[%emt 0:04:34]} Qf8 {[%emt 0:02:25]} 37. e7 1-0

[Event "XII Cracow ICC-A 2024"]
[Site "Krakow"]
[Date "2024.06.23"]
[Round "3.22"]
[White "Berin, Artem"]
[Black "Brzezina, Piotr"]
[Result "1/2-1/2"]
[ECO "E47"]
[WhiteElo "2234"]
[BlackElo "2298"]
[Annotator "RC"]
[PlyCount "89"]
[EventDate "2024.06.20"]
[EventType "swiss"]
[EventCountry "POL"]
[SourceTitle "playchess.com"]
[Source "ChessBase"]
[SourceQuality "1"]
[TimeControl "40/5400+30:1800+30"]

1. d4 {[%emt 0:02:01]} Nf6 {[%emt 0:01:07]} 2. c4 {[%emt 0:00:08]} e6 {[%emt 0:00:06]} 3. Nc3 {[%emt 0:00:04]} Bb4 {[%emt 0:00:05]} 4. e3 {[%emt 0:00:05]} O-O {[%emt 0:00:22]} 5. Bd3 {[%emt 0:00:04]} c5 {[%emt 0:00:35]} 6. Nf3 {[%emt 0:00:07]} Nc6 {[%emt 0:00:32]} 7. O-O {[%emt 0:00:10]} Bxc3 {[%emt 0:00:07]} 8. bxc3 {[%emt 0:00:05]} d6 {[%emt 0:00:02]} 9. e4 {[%emt 0:02:38]} e5 {[%emt 0:00:29]} 10. Be3 {[%emt 0:03:27]} cxd4 {[%emt 0:20:46]} 11. cxd4 {[%emt 0:00:50]} exd4 {[%emt 0:00:04]} 12. Nxd4 {[%emt 0:00:15]} Ne5 {[%emt 0:01:35]} 13. f3 {[%emt 0:07:31]} Nxd3 {[%emt 0:12:06]} 14. Qxd3 {[%emt 0:00:08]} Nd7 {[%emt 0:01:14]} 15. Rfd1 {[%emt 0:04:20]} Ne5 {[%emt 0:00:49]} 16. Qb3 {[%emt 0:01:09]} Qc7 {[%emt 0:01:33]} 17. Rac1 {[%emt 0:02:31]} a6 {[%emt 0:00:39]} 18. Nf5 {[%emt 0:04:10]} Bxf5 {[%emt 0:16:13]} 19. exf5 {[%emt 0:00:33]} Rac8 {[%emt 0:01:39]} 20. c5 {[%emt 0:04:00]} dxc5 {[%emt 0:01:34]} 21. Rxc5 {[%emt 0:00:15]} Nc6 {[%emt 0:11:08]} 22. Rcd5 {[%emt 0:03:31]} Na5 {[%emt 0:11:14]} 23. Qb4 {[%emt 0:02:58]} Rfd8 {[%emt 0:01:21]} 24. f6 {[%emt 0:06:40]} g6 {[%emt 0:10:28]} 25. Qh4 {[%emt 0:05:37]} Rxd5 {[%emt 0:00:45]} 26. Rxd5 {[%emt 0:01:11]} Qc3 {[%emt 0:01:38]} 27. Bd2 {[%emt 0:00:43]} Qa1+ {[%emt 0:00:09]} 28. Kf2 {[%emt 0:00:06]} Nc6 {[%emt 0:01:22]} 29. Rd6 {[%emt 0:27:40]} Kh8 {[%emt 0:02:43]} 30. Qc4 {[%emt 0:02:14]} Kg8 {[%emt 0:00:54]} 31. Bc3 {[%emt 0:04:24]} Qc1 {[%emt 0:01:31]} 32. Qd3 {[%emt 0:01:58]} Re8 {[%emt 0:00:58]} 33. Qd2 {[%emt 0:01:41]} Qxd2+ {[%emt 0:00:39]} 34. Rxd2 {[%emt 0:00:02]} Rd8 {[%emt 0:00:32]} 35. Rxd8+ {[%emt 0:00:08]} Nxd8 {[%emt 0:00:03]} 36. Bb4 {[%emt 0:00:07]} Nc6 {[%emt 0:00:39]} 37. Bc5 {[%emt 0:00:56]} g5 {[%emt 0:00:37]} 38. Ke3 {[%emt 0:03:09]} h6 {[%emt 0:00:16]} 39. h4 {[%emt 0:08:22]} gxh4 {[%emt 0:00:29]} 40. f4 {[%emt 0:00:03]} Kh7 {[%emt 0:00:35]} 41. f5 {[%emt 0:30:05]} Ne5 {[%emt 0:03:52]} 42. Ke4 {[%emt 0:00:00]} Ng4 {[%emt 0:01:59]} 43. Bd4 {[%emt 0:00:00]} h5 {[%emt 0:00:47]} 44. Kd5 {[%emt 0:00:00]} Nh6 {[%emt 0:02:50]} 45. Ke4 1/2-1/2

[Event "XII Cracow ICC-A 2024"]
[Site "Krakow"]
[Date "2024.06.23"]
[Round "3.23"]
[White "Garbuz, Vitaliy"]
[Black "Eliseev, Sergey"]
[Result "1/2-1/2"]
[ECO "B22"]
[WhiteElo "2205"]
[BlackElo "2296"]
[Annotator "RC"]
[PlyCount "79"]
[EventDate "2024.06.20"]
[EventType "swiss"]
[EventCountry "POL"]
[SourceTitle "playchess.com"]
[Source "ChessBase"]
[SourceQuality "1"]
[TimeControl "40/5400+30:1800+30"]

1. e4 {[%emt 0:13:34]} c5 {[%emt 0:00:02]} 2. c3 {[%emt 0:02:26]} d5 {[%emt 0:00:33]} 3. exd5 {[%emt 0:00:07]} Qxd5 {[%emt 0:00:06]} 4. d4 {[%emt 0:00:14]} Nc6 {[%emt 0:00:12]} 5. Nf3 {[%emt 0:00:18]} Nf6 {[%emt 0:00:18]} 6. Na3 {[%emt 0:01:09]} Bg4 {[%emt 0:02:20]} 7. Be2 {[%emt 0:09:00]} e6 {[%emt 0:06:21]} 8. O-O {[%emt 0:13:43]} O-O-O {[%emt 0:01:51]} 9. Ng5 {[%emt 0:10:57]} Bxe2 {[%emt 0:00:47]} 10. Qxe2 {[%emt 0:00:06]} Rd7 {[%emt 0:03:18]} 11. dxc5 {[%emt 0:07:33]} Bxc5 {[%emt 0:01:03]} 12. b4 {[%emt 0:02:13]} Bb6 {[%emt 0:01:11]} 13. Be3 {[%emt 0:02:40]} Bxe3 {[%emt 0:03:14]} 14. Qxe3 {[%emt 0:00:10]} h6 {[%emt 0:04:10]} 15. Nf3 {[%emt 0:00:24]} Qe4 {[%emt 0:01:17]} 16. Qxe4 {[%emt 0:02:36]} Nxe4 {[%emt 0:00:02]} 17. Rfe1 {[%emt 0:00:23]} Ng5 {[%emt 0:11:29]} 18. Nxg5 {[%emt 0:11:14]} hxg5 {[%emt 0:00:02]} 19. Nc4 {[%emt 0:00:15]} Rd5 {[%emt 0:07:57]} 20. b5 {[%emt 0:13:12]} Rh4 {[%emt 0:01:14]} 21. bxc6 {[%emt 0:01:27]} Rxc4 {[%emt 0:00:06]} 22. cxb7+ {[%emt 0:00:04]} Kxb7 {[%emt 0:03:23]} 23. Rab1+ {[%emt 0:00:41]} Kc6 {[%emt 0:02:14]} 24. Rb8 {[%emt 0:00:23]} Rd7 {[%emt 0:00:20]} 25. Rb3 {[%emt 0:02:29]} a5 {[%emt 0:05:56]} 26. Reb1 {[%emt 0:00:22]} Rc7 {[%emt 0:00:26]} 27. Rb5 {[%emt 0:04:03]} Rc5 {[%emt 0:02:17]} 28. a4 {[%emt 0:00:41]} Kd5 {[%emt 0:01:16]} 29. Kf1 {[%emt 0:01:05]} Kc4 {[%emt 0:02:29]} 30. Ke2 {[%emt 0:00:58]} Kxc3 {[%emt 0:00:45]} 31. Ke3 {[%emt 0:00:39]} Kc4 {[%emt 0:00:41]} 32. Rc1+ {[%emt 0:00:34]} Kd5 {[%emt 0:00:17]} 33. Rxa5 {[%emt 0:00:15]} Rxa5 {[%emt 0:02:41]} 34. Rxc7 {[%emt 0:00:06]} f5 {[%emt 0:06:48]} 35. Rxg7 {[%emt 0:00:12]} g4 {[%emt 0:00:13]} 36. Rd7+ {[%emt 0:00:40]} Kc5 {[%emt 0:00:25]} 37. Rc7+ {[%emt 0:01:24]} Kd5 {[%emt 0:00:01]} 38. Rd7+ {[%emt 0:00:22]} Kc5 {[%emt 0:05:42]} 39. Rc7+ {[%emt 0:00:18]} Kd5 {[%emt 0:01:17]} 40. Rd7+ {[%emt 0:00:53]} 1/2-1/2

[Event "XII Cracow ICC-A 2024"]
[Site "Krakow"]
[Date "2024.06.23"]
[Round "3.24"]
[White "Meessen, Rudolf"]
[Black "Dziewonski, Dariusz"]
[Result "1/2-1/2"]
[ECO "D00"]
[WhiteElo "2182"]
[BlackElo "2293"]
[Annotator "RC"]
[PlyCount "45"]
[EventDate "2024.06.20"]
[EventType "swiss"]
[EventCountry "POL"]
[SourceTitle "playchess.com"]
[Source "ChessBase"]
[SourceQuality "1"]
[TimeControl "40/5400+30:1800+30"]

1. d4 {[%emt 0:00:06]} d5 {[%emt 0:00:05]} 2. Bf4 {[%emt 0:01:40]} Nf6 {[%emt 0:00:52]} 3. e3 {[%emt 0:00:08]} c5 {[%emt 0:00:17]} 4. Nf3 {[%emt 0:00:37]} cxd4 {[%emt 0:02:15]} 5. exd4 {[%emt 0:00:18]} Nc6 {[%emt 0:00:44]} 6. Nbd2 {[%emt 0:00:28]} Bg4 {[%emt 0:04:52]} 7. c3 {[%emt 0:00:10]} e6 {[%emt 0:05:54]} 8. Qb3 {[%emt 0:00:42]} Qc8 {[%emt 0:00:28]} 9. h4 {[%emt 0:02:19]} Bf5 {[%emt 0:04:46]} 10. Ne5 {[%emt 0:08:46]} Nxe5 {[%emt 0:06:36]} 11. dxe5 {[%emt 0:00:59]} Nd7 {[%emt 0:00:30]} 12. Nf3 {[%emt 0:03:57]} h6 {[%emt 0:08:57]} 13. Be3 {[%emt 0:09:39]} Be7 {[%emt 0:05:25]} 14. Nd4 {[%emt 0:03:38]} Be4 {[%emt 0:04:29]} 15. f3 {[%emt 0:01:21]} Bh7 {[%emt 0:00:22]} 16. f4 {[%emt 0:00:43]} O-O {[%emt 0:01:55]} 17. Qd1 {[%emt 0:01:37]} Nc5 {[%emt 0:07:07]} 18. Qg4 {[%emt 0:00:07]} Nd3+ {[%emt 0:04:55]} 19. Bxd3 {[%emt 0:00:10]} Bxd3 {[%emt 0:00:05]} 20. Rh3 {[%emt 0:00:45]} Bf5 {[%emt 0:01:24]} 21. Nxf5 {[%emt 0:00:07]} exf5 {[%emt 0:00:04]} 22. Qe2 {[%emt 0:04:38]} Qe6 {[%emt 0:03:25]} 23. Bd4 {[%emt 0:02:42]} 1/2-1/2